[Event "Live Chess"]
[Site "Chess.com"]
[Date "2010.12.06"]
[Round "-"]
[White "fady86"]
[Black "hipposcottimus"]
[Result "0-1"]
[CurrentPosition "r4rk1/p3bppp/1p1p4/5Q1q/8/1P2NbP1/PB3P1P/R5K1 w - -"]
[Timezone "UTC"]
[ECO "B00"]
[ECOUrl "https://www.chess.com/openings/Nimzowitsch-Defense-Kennedy-Variation"]
[UTCDate "2010.12.06"]
[UTCTime "01:00:01"]
[WhiteElo "1733"]
[BlackElo "1553"]
[TimeControl "60"]
[Termination "hipposcottimus won on time"]
[StartTime "01:00:01"]
[EndDate "2010.12.06"]
[EndTime "01:01:56"]
[Link "https://www.chess.com/game/live/74446160"]

1. e4 {[%clk 0:01:00]} 1... e5 {[%clk 0:01:00]} 2. d4 {[%clk 0:00:59.1]} 2... Nc6 {[%clk 0:00:59.8]} 3. d5 {[%clk 0:00:57.2]} 3... Nce7 {[%clk 0:00:59.5]} 4. Nf3 {[%clk 0:00:55.8]} 4... d6 {[%clk 0:00:59.2]} 5. Be2 {[%clk 0:00:55.3]} 5... c6 {[%clk 0:00:58.8]} 6. O-O {[%clk 0:00:54.6]} 6... cxd5 {[%clk 0:00:58.1]} 7. exd5 {[%clk 0:00:53.3]} 7... Ng6 {[%clk 0:00:54.3]} 8. Nc3 {[%clk 0:00:50.1]} 8... Nf6 {[%clk 0:00:53.9]} 9. Bd3 {[%clk 0:00:47.8]} 9... Be7 {[%clk 0:00:53.5]} 10. Qe2 {[%clk 0:00:46.9]} 10... O-O {[%clk 0:00:51.8]} 11. Ne1 {[%clk 0:00:44.5]} 11... Nf4 {[%clk 0:00:50.9]} 12. Qd2 {[%clk 0:00:42.3]} 12... Nxd3 {[%clk 0:00:50.5]} 13. cxd3 {[%clk 0:00:40.5]} 13... Qb6 {[%clk 0:00:45.2]} 14. Na4 {[%clk 0:00:37.6]} 14... Qa5 {[%clk 0:00:44]} 15. b3 {[%clk 0:00:36.1]} 15... Qxd5 {[%clk 0:00:41.7]} 16. Nf3 {[%clk 0:00:33.6]} 16... b6 {[%clk 0:00:41]} 17. Nb2 {[%clk 0:00:31.4]} 17... Bb7 {[%clk 0:00:40.2]} 18. Nc4 {[%clk 0:00:30]} 18... e4 {[%clk 0:00:39.3]} 19. dxe4 {[%clk 0:00:28.2]} 19... Qxe4 {[%clk 0:00:38.2]} 20. Bb2 {[%clk 0:00:23.4]} 20... Qg6 {[%clk 0:00:37.8]} 21. Rfe1 {[%clk 0:00:22.1]} 21... Bxf3 {[%clk 0:00:37.1]} 22. g3 {[%clk 0:00:19]} 22... Nd5 {[%clk 0:00:33]} 23. Qc2 {[%clk 0:00:11.4]} 23... Qg4 {[%clk 0:00:30.5]} 24. Re3 {[%clk 0:00:08.3]} 24... Nxe3 {[%clk 0:00:23.1]} 25. Nxe3 {[%clk 0:00:07]} 25... Qh3 {[%clk 0:00:22.5]} 26. Qf5 {[%clk 0:00:02.9]} 26... Qh5 {[%clk 0:00:15.2]} 0-1

[Event "Live Chess"]
[Site "Chess.com"]
[Date "2010.12.06"]
[Round "-"]
[White "hipposcottimus"]
[Black "StinkinBishop"]
[Result "1-0"]
[CurrentPosition "r1bq1b1r/p1p1nNpp/3k4/1p1np3/2B5/5Q2/PPPP1PPP/R1B1K2R b KQ -"]
[Timezone "UTC"]
[ECO "C57"]
[ECOUrl "https://www.chess.com/openings/Italian-Game-Fried-Liver-Fegatello-Attack-Polerio-Defense"]
[UTCDate "2010.12.06"]
[UTCTime "00:58:03"]
[WhiteElo "1540"]
[BlackElo "1311"]
[TimeControl "60"]
[Termination "hipposcottimus won on time"]
[StartTime "00:58:03"]
[EndDate "2010.12.06"]
[EndTime "00:59:12"]
[Link "https://www.chess.com/game/live/74445617"]

1. e4 {[%clk 0:01:00]} 1... e5 {[%clk 0:01:00]} 2. Nf3 {[%clk 0:00:56.7]} 2... Nc6 {[%clk 0:01:00]} 3. Bc4 {[%clk 0:00:56.1]} 3... Nf6 {[%clk 0:00:56.6]} 4. Ng5 {[%clk 0:00:55.2]} 4... d5 {[%clk 0:00:54.6]} 5. exd5 {[%clk 0:00:54.9]} 5... Nxd5 {[%clk 0:00:51.5]} 6. Nxf7 {[%clk 0:00:53.5]} 6... Kxf7 {[%clk 0:00:45]} 7. Qf3+ {[%clk 0:00:52.9]} 7... Ke6 {[%clk 0:00:37.4]} 8. Nc3 {[%clk 0:00:51.5]} 8... Ne7 {[%clk 0:00:35.3]} 9. Ne4 {[%clk 0:00:37.4]} 9... b5 {[%clk 0:00:28.6]} 10. Ng5+ {[%clk 0:00:36.1]} 10... Kd6 {[%clk 0:00:25.4]} 11. Nf7+ {[%clk 0:00:31.6]} 1-0

[Event "Live Chess"]
[Site "Chess.com"]
[Date "2010.12.06"]
[Round "-"]
[White "hipposcottimus"]
[Black "praveen_80"]
[Result "0-1"]
[CurrentPosition "7r/R5pp/p7/1p1N4/1P2n3/k7/P3q1PP/3R3K w - -"]
[Timezone "UTC"]
[ECO "C00"]
[ECOUrl "https://www.chess.com/openings/French-Defense-Knight-Variation"]
[UTCDate "2010.12.06"]
[UTCTime "00:47:22"]
[WhiteElo "1536"]
[BlackElo "1483"]
[TimeControl "60"]
[Termination "praveen_80 won on time"]
[StartTime "00:47:22"]
[EndDate "2010.12.06"]
[EndTime "00:49:36"]
[Link "https://www.chess.com/game/live/74443564"]

1. e4 {[%clk 0:01:00]} 1... e6 {[%clk 0:01:00]} 2. Nf3 {[%clk 0:00:58.7]} 2... c6 {[%clk 0:01:00]} 3. e5 {[%clk 0:00:58.4]} 3... b5 {[%clk 0:01:00]} 4. d4 {[%clk 0:00:58.1]} 4... Bb7 {[%clk 0:00:59.6]} 5. c4 {[%clk 0:00:57.8]} 5... Qc8 {[%clk 0:00:58.9]} 6. cxb5 {[%clk 0:00:56.8]} 6... cxb5 {[%clk 0:00:58.6]} 7. Nc3 {[%clk 0:00:56.5]} 7... a6 {[%clk 0:00:58]} 8. Be2 {[%clk 0:00:55.8]} 8... Nc6 {[%clk 0:00:56.2]} 9. O-O {[%clk 0:00:55.4]} 9... Qc7 {[%clk 0:00:55.9]} 10. Be3 {[%clk 0:00:53.8]} 10... Be7 {[%clk 0:00:55.3]} 11. d5 {[%clk 0:00:53.2]} 11... Nxe5 {[%clk 0:00:53.4]} 12. Nxe5 {[%clk 0:00:48.6]} 12... Qxe5 {[%clk 0:00:52.4]} 13. d6 {[%clk 0:00:48.3]} 13... Bxd6 {[%clk 0:00:49.3]} 14. f4 {[%clk 0:00:45.9]} 14... Qf6 {[%clk 0:00:45]} 15. Bd4 {[%clk 0:00:39.9]} 15... e5 {[%clk 0:00:42.4]} 16. fxe5 {[%clk 0:00:38.2]} 16... Qg5 {[%clk 0:00:40.5]} 17. Bf3 {[%clk 0:00:25.7]} 17... Bxf3 {[%clk 0:00:32.7]} 18. Qxf3 {[%clk 0:00:21.1]} 18... Bxe5 {[%clk 0:00:32]} 19. Qxf7+ {[%clk 0:00:19.5]} 19... Kd8 {[%clk 0:00:29.4]} 20. Bxe5 {[%clk 0:00:19.1]} 20... Qxe5 {[%clk 0:00:24.8]} 21. Qf8+ {[%clk 0:00:18.8]} 21... Kc7 {[%clk 0:00:23.3]} 22. Rae1 {[%clk 0:00:17.9]} 22... Qd4+ {[%clk 0:00:21.3]} 23. Kh1 {[%clk 0:00:16.2]} 23... Rxf8 {[%clk 0:00:19.2]} 24. Rxf8 {[%clk 0:00:14.7]} 24... Nf6 {[%clk 0:00:17.9]} 25. Rf7 {[%clk 0:00:11.8]} 25... Qd2 {[%clk 0:00:15.6]} 26. Rf1 {[%clk 0:00:09.5]} 26... Qe2 {[%clk 0:00:14.2]} 27. Rd1 {[%clk 0:00:07.6]} 27... Ne4 {[%clk 0:00:11.5]} 28. Rfxd7+ {[%clk 0:00:06.3]} 28... Kb6 {[%clk 0:00:09.2]} 29. Nd5+ {[%clk 0:00:03.2]} 29... Ka5 {[%clk 0:00:05.9]} 30. b4+ {[%clk 0:00:02.8]} 30... Ka4 {[%clk 0:00:04.7]} 31. Ra7 {[%clk 0:00:00.2]} 31... Ka3 {[%clk 0:00:02.1]} 0-1

[Event "Live Chess"]
[Site "Chess.com"]
[Date "2010.12.06"]
[Round "-"]
[White "hipposcottimus"]
[Black "Snart"]
[Result "1-0"]
[CurrentPosition "4r3/p5kb/4R3/1p4pp/3N4/1B1P4/PPP3PK/R7 b - -"]
[Timezone "UTC"]
[ECO "B01"]
[ECOUrl "https://www.chess.com/openings/Scandinavian-Defense-Modern-Variation"]
[UTCDate "2010.12.06"]
[UTCTime "00:42:11"]
[WhiteElo "1545"]
[BlackElo "1462"]
[TimeControl "60"]
[Termination "hipposcottimus won on time"]
[StartTime "00:42:11"]
[EndDate "2010.12.06"]
[EndTime "00:44:15"]
[Link "https://www.chess.com/game/live/74442206"]

1. e4 {[%clk 0:01:00]} 1... d5 {[%clk 0:01:00]} 2. exd5 {[%clk 0:00:58]} 2... Nf6 {[%clk 0:00:59.1]} 3. Bc4 {[%clk 0:00:56.2]} 3... e6 {[%clk 0:00:57]} 4. Nc3 {[%clk 0:00:54.9]} 4... exd5 {[%clk 0:00:55.8]} 5. Bb5+ {[%clk 0:00:53]} 5... c6 {[%clk 0:00:54.4]} 6. Ba4 {[%clk 0:00:52.7]} 6... Bf5 {[%clk 0:00:53.1]} 7. Nf3 {[%clk 0:00:49.5]} 7... Bd6 {[%clk 0:00:51.6]} 8. Nd4 {[%clk 0:00:47.2]} 8... Bg6 {[%clk 0:00:46.5]} 9. O-O {[%clk 0:00:46.6]} 9... O-O {[%clk 0:00:45.4]} 10. d3 {[%clk 0:00:43.6]} 10... Qd7 {[%clk 0:00:44.5]} 11. f4 {[%clk 0:00:39.5]} 11... b5 {[%clk 0:00:43.4]} 12. Bb3 {[%clk 0:00:34.8]} 12... Qc7 {[%clk 0:00:41]} 13. f5 {[%clk 0:00:32.8]} 13... Ng4 {[%clk 0:00:37.9]} 14. Qxg4 {[%clk 0:00:27.6]} 14... Bxh2+ {[%clk 0:00:36.4]} 15. Kh1 {[%clk 0:00:27]} 15... h5 {[%clk 0:00:31.9]} 16. Qh3 {[%clk 0:00:24.3]} 16... Bh7 {[%clk 0:00:27.3]} 17. Qxh2 {[%clk 0:00:23.4]} 17... Qxh2+ {[%clk 0:00:24.5]} 18. Kxh2 {[%clk 0:00:23.1]} 18... Nd7 {[%clk 0:00:24.2]} 19. Nxc6 {[%clk 0:00:21.7]} 19... Nf6 {[%clk 0:00:20]} 20. Ne7+ {[%clk 0:00:20.8]} 20... Kh8 {[%clk 0:00:18.1]} 21. Nexd5 {[%clk 0:00:19.8]} 21... Nxd5 {[%clk 0:00:15.9]} 22. Nxd5 {[%clk 0:00:19.4]} 22... Rad8 {[%clk 0:00:15.9]} 23. Bg5 {[%clk 0:00:16.9]} 23... f6 {[%clk 0:00:13.7]} 24. Nf4 {[%clk 0:00:15.1]} 24... Rd4 {[%clk 0:00:11.7]} 25. Ne6 {[%clk 0:00:13.6]} 25... Re8 {[%clk 0:00:05.7]} 26. Nxd4 {[%clk 0:00:12.1]} 26... fxg5 {[%clk 0:00:04.1]} 27. f6 {[%clk 0:00:11.4]} 27... gxf6 {[%clk 0:00:02.1]} 28. Rxf6 {[%clk 0:00:10.5]} 28... Kg7 {[%clk 0:00:01.2]} 29. Re6 {[%clk 0:00:09.7]} 1-0

[Event "Live Chess"]
[Site "Chess.com"]
[Date "2010.12.06"]
[Round "-"]
[White "Snart"]
[Black "hipposcottimus"]
[Result "1-0"]
[CurrentPosition "r2qk2r/p2bbppp/3p1n2/1pp3N1/2Q1P2P/2N5/PPP2PP1/2KR3R w kq b6"]
[Timezone "UTC"]
[ECO "B00"]
[ECOUrl "https://www.chess.com/openings/Nimzowitsch-Defense-Kennedy-Variation"]
[UTCDate "2010.12.06"]
[UTCTime "00:39:58"]
[WhiteElo "1462"]
[BlackElo "1545"]
[TimeControl "60"]
[Termination "Snart won by resignation"]
[StartTime "00:39:58"]
[EndDate "2010.12.06"]
[EndTime "00:41:01"]
[Link "https://www.chess.com/game/live/74441896"]

1. e4 {[%clk 0:01:00]} 1... e5 {[%clk 0:01:00]} 2. d4 {[%clk 0:00:59.6]} 2... Nc6 {[%clk 0:00:59.7]} 3. Nf3 {[%clk 0:00:58.7]} 3... d6 {[%clk 0:00:58]} 4. Bb5 {[%clk 0:00:56.2]} 4... Bd7 {[%clk 0:00:54.9]} 5. Be3 {[%clk 0:00:55.2]} 5... exd4 {[%clk 0:00:49.9]} 6. Bxd4 {[%clk 0:00:51]} 6... Nxd4 {[%clk 0:00:44.3]} 7. Qxd4 {[%clk 0:00:48.3]} 7... Bxb5 {[%clk 0:00:41.8]} 8. Nc3 {[%clk 0:00:45.9]} 8... Bd7 {[%clk 0:00:38.6]} 9. O-O-O {[%clk 0:00:44]} 9... Be7 {[%clk 0:00:37.2]} 10. h4 {[%clk 0:00:39.6]} 10... Nf6 {[%clk 0:00:36.7]} 11. Ng5 {[%clk 0:00:38.3]} 11... c5 {[%clk 0:00:30.6]} 12. Qc4 {[%clk 0:00:35.5]} 12... b5 {[%clk 0:00:28.3]} 1-0

[Event "Live Chess"]
[Site "Chess.com"]
[Date "2010.12.06"]
[Round "-"]
[White "venerican"]
[Black "hipposcottimus"]
[Result "0-1"]
[CurrentPosition "8/8/7p/2p2p1k/4p2P/p7/1rP4R/2K5 w - -"]
[Timezone "UTC"]
[ECO "D00"]
[ECOUrl "https://www.chess.com/openings/Queens-Pawn-Opening-1...d5"]
[UTCDate "2010.12.06"]
[UTCTime "00:37:03"]
[WhiteElo "1397"]
[BlackElo "1545"]
[TimeControl "60"]
[Termination "hipposcottimus won on time"]
[StartTime "00:37:03"]
[EndDate "2010.12.06"]
[EndTime "00:39:22"]
[Link "https://www.chess.com/game/live/74441239"]

1. d4 {[%clk 0:01:00]} 1... d5 {[%clk 0:01:00]} 2. f3 {[%clk 0:00:58.5]} 2... c6 {[%clk 0:00:59.7]} 3. Nc3 {[%clk 0:00:57.7]} 3... Nd7 {[%clk 0:00:59.4]} 4. Nh3 {[%clk 0:00:56.3]} 4... e5 {[%clk 0:00:59.1]} 5. dxe5 {[%clk 0:00:55]} 5... Nxe5 {[%clk 0:00:58.8]} 6. Bf4 {[%clk 0:00:54]} 6... Bxh3 {[%clk 0:00:58.5]} 7. gxh3 {[%clk 0:00:52.9]} 7... Ng6 {[%clk 0:00:56.7]} 8. Be3 {[%clk 0:00:51]} 8... Nf6 {[%clk 0:00:56.4]} 9. Bg2 {[%clk 0:00:49.9]} 9... Bb4 {[%clk 0:00:56]} 10. f4 {[%clk 0:00:48.5]} 10... Bxc3+ {[%clk 0:00:54.2]} 11. bxc3 {[%clk 0:00:48.2]} 11... Ne4 {[%clk 0:00:53.2]} 12. Bxe4 {[%clk 0:00:46.2]} 12... dxe4 {[%clk 0:00:52.9]} 13. Qxd8+ {[%clk 0:00:45.9]} 13... Rxd8 {[%clk 0:00:52.6]} 14. Rd1 {[%clk 0:00:43.3]} 14... O-O {[%clk 0:00:50.9]} 15. f5 {[%clk 0:00:41.5]} 15... Rxd1+ {[%clk 0:00:49.3]} 16. Kxd1 {[%clk 0:00:40]} 16... Ne5 {[%clk 0:00:49]} 17. Kc1 {[%clk 0:00:38.4]} 17... Nc4 {[%clk 0:00:48]} 18. Bd2 {[%clk 0:00:36.9]} 18... b5 {[%clk 0:00:46.7]} 19. Rg1 {[%clk 0:00:32.3]} 19... e3 {[%clk 0:00:46.2]} 20. Be1 {[%clk 0:00:29.7]} 20... f6 {[%clk 0:00:32.9]} 21. h4 {[%clk 0:00:28.1]} 21... Ra8 {[%clk 0:00:32.4]} 22. Rg4 {[%clk 0:00:27]} 22... a5 {[%clk 0:00:31]} 23. Bg3 {[%clk 0:00:24.7]} 23... a4 {[%clk 0:00:26.3]} 24. Bf4 {[%clk 0:00:23.8]} 24... a3 {[%clk 0:00:25.8]} 25. Rg3 {[%clk 0:00:22.8]} 25... b4 {[%clk 0:00:22.5]} 26. Bg5 {[%clk 0:00:21.6]} 26... Rf8 {[%clk 0:00:20.1]} 27. Bxe3 {[%clk 0:00:20]} 27... Nxe3 {[%clk 0:00:17.8]} 28. Rxe3 {[%clk 0:00:18.1]} 28... Rb8 {[%clk 0:00:17.5]} 29. cxb4 {[%clk 0:00:16.7]} 29... Kf7 {[%clk 0:00:17.2]} 30. Re4 {[%clk 0:00:15.1]} 30... g6 {[%clk 0:00:15]} 31. e3 {[%clk 0:00:13.2]} 31... gxf5 {[%clk 0:00:14]} 32. Rf4 {[%clk 0:00:12.3]} 32... Kg6 {[%clk 0:00:13.2]} 33. e4 {[%clk 0:00:10.7]} 33... h6 {[%clk 0:00:12.7]} 34. e5 {[%clk 0:00:09.2]} 34... fxe5 {[%clk 0:00:11.2]} 35. h5+ {[%clk 0:00:08.2]} 35... Kg5 {[%clk 0:00:09.7]} 36. Rf3 {[%clk 0:00:07.1]} 36... e4 {[%clk 0:00:08.8]} 37. Rf2 {[%clk 0:00:05.5]} 37... Rxb4 {[%clk 0:00:07.9]} 38. Rg2+ {[%clk 0:00:04.4]} 38... Kxh5 {[%clk 0:00:06]} 39. h4 {[%clk 0:00:04]} 39... Rb2 {[%clk 0:00:04.4]} 40. Rh2 {[%clk 0:00:03.5]} 40... Rxa2 {[%clk 0:00:03.4]} 41. Kb1 {[%clk 0:00:02.3]} 41... Rb2+ {[%clk 0:00:02.6]} 42. Kc1 {[%clk 0:00:00.4]} 42... c5 {[%clk 0:00:02.1]} 0-1

[Event "Live Chess"]
[Site "Chess.com"]
[Date "2010.12.06"]
[Round "-"]
[White "hipposcottimus"]
[Black "jimmypage"]
[Result "0-1"]
[CurrentPosition "1n6/8/1k3pp1/1Pp1p2p/P1P5/6P1/4KP1P/8 w - -"]
[Timezone "UTC"]
[ECO "B01"]
[ECOUrl "https://www.chess.com/openings/Scandinavian-Defense-Mieses-Kotrc-Variation-3.Nc3-Qd8-4.d4"]
[UTCDate "2010.12.06"]
[UTCTime "00:31:52"]
[WhiteElo "1540"]
[BlackElo "1599"]
[TimeControl "60"]
[Termination "jimmypage won on time"]
[StartTime "00:31:52"]
[EndDate "2010.12.06"]
[EndTime "00:34:02"]
[Link "https://www.chess.com/game/live/74440198"]

1. e4 {[%clk 0:01:00]} 1... d5 {[%clk 0:01:00]} 2. exd5 {[%clk 0:00:58.6]} 2... Qxd5 {[%clk 0:00:59.1]} 3. Nc3 {[%clk 0:00:58.3]} 3... Qd8 {[%clk 0:00:57.8]} 4. d4 {[%clk 0:00:56.6]} 4... Nc6 {[%clk 0:00:57.4]} 5. Nf3 {[%clk 0:00:56.3]} 5... Bg4 {[%clk 0:00:56]} 6. Bb5 {[%clk 0:00:55.2]} 6... Bxf3 {[%clk 0:00:55.2]} 7. Bxc6+ {[%clk 0:00:54.1]} 7... bxc6 {[%clk 0:00:54.6]} 8. Qxf3 {[%clk 0:00:53.7]} 8... Qxd4 {[%clk 0:00:53.4]} 9. O-O {[%clk 0:00:51.2]} 9... e5 {[%clk 0:00:51]} 10. Be3 {[%clk 0:00:50.7]} 10... Qd6 {[%clk 0:00:48.1]} 11. Ne4 {[%clk 0:00:46.1]} 11... Qe6 {[%clk 0:00:46.1]} 12. Nc5 {[%clk 0:00:42.4]} 12... Bxc5 {[%clk 0:00:44.8]} 13. Bxc5 {[%clk 0:00:40.9]} 13... Nf6 {[%clk 0:00:44.4]} 14. Rfe1 {[%clk 0:00:40]} 14... Nd5 {[%clk 0:00:40.3]} 15. Bd4 {[%clk 0:00:38.3]} 15... f6 {[%clk 0:00:38.2]} 16. Qh5+ {[%clk 0:00:33.2]} 16... g6 {[%clk 0:00:36.6]} 17. Qe2 {[%clk 0:00:29.8]} 17... O-O-O {[%clk 0:00:35.4]} 18. Qc4 {[%clk 0:00:25.4]} 18... Nf4 {[%clk 0:00:32.7]} 19. Bxa7 {[%clk 0:00:21.8]} 19... Rd4 {[%clk 0:00:28.4]} 20. Qa6+ {[%clk 0:00:21.3]} 20... Kd7 {[%clk 0:00:27.8]} 21. Red1 {[%clk 0:00:20.3]} 21... Rxd1+ {[%clk 0:00:26.4]} 22. Rxd1+ {[%clk 0:00:20]} 22... Ke7 {[%clk 0:00:23.6]} 23. Qb7 {[%clk 0:00:17.5]} 23... Rd8 {[%clk 0:00:21.8]} 24. Qxc7+ {[%clk 0:00:16.4]} 24... Rd7 {[%clk 0:00:20.4]} 25. Rxd7+ {[%clk 0:00:13.9]} 25... Qxd7 {[%clk 0:00:18.9]} 26. Qxd7+ {[%clk 0:00:09.2]} 26... Kxd7 {[%clk 0:00:18]} 27. g3 {[%clk 0:00:08.9]} 27... Nd5 {[%clk 0:00:16.4]} 28. Kf1 {[%clk 0:00:07.9]} 28... c5 {[%clk 0:00:15.5]} 29. Ke2 {[%clk 0:00:07.5]} 29... Kc6 {[%clk 0:00:15]} 30. Bb8 {[%clk 0:00:05]} 30... h5 {[%clk 0:00:13]} 31. c4 {[%clk 0:00:03.3]} 31... Nb4 {[%clk 0:00:11.7]} 32. a3 {[%clk 0:00:01.8]} 32... Na6 {[%clk 0:00:10.6]} 33. b4 {[%clk 0:00:00.9]} 33... Nxb8 {[%clk 0:00:09.6]} 34. b5+ {[%clk 0:00:00.6]} 34... Kc7 {[%clk 0:00:08.5]} 35. a4 {[%clk 0:00:00.3]} 35... Kb6 {[%clk 0:00:07.7]} 0-1

[Event "Live Chess"]
[Site "Chess.com"]
[Date "2010.12.06"]
[Round "-"]
[White "jimmypage"]
[Black "hipposcottimus"]
[Result "0-1"]
[CurrentPosition "3r2k1/p5pp/6b1/8/5p1P/2P1R1P1/P4P1K/8 w - -"]
[Timezone "UTC"]
[ECO "C47"]
[ECOUrl "https://www.chess.com/openings/Four-Knights-Game-Scotch-Variation-4...Bb4-5.d5-Ne7"]
[UTCDate "2010.12.06"]
[UTCTime "00:29:25"]
[WhiteElo "1592"]
[BlackElo "1547"]
[TimeControl "60"]
[Termination "hipposcottimus won on time"]
[StartTime "00:29:25"]
[EndDate "2010.12.06"]
[EndTime "00:31:33"]
[Link "https://www.chess.com/game/live/74439678"]

1. e4 {[%clk 0:01:00]} 1... e5 {[%clk 0:01:00]} 2. Nf3 {[%clk 0:00:59.3]} 2... Nc6 {[%clk 0:00:59.7]} 3. Nc3 {[%clk 0:00:58]} 3... Nf6 {[%clk 0:00:59.4]} 4. d4 {[%clk 0:00:57.3]} 4... Bb4 {[%clk 0:00:59.2]} 5. d5 {[%clk 0:00:55.8]} 5... Ne7 {[%clk 0:00:57.9]} 6. Qd3 {[%clk 0:00:54]} 6... d6 {[%clk 0:00:57.4]} 7. Bd2 {[%clk 0:00:53]} 7... Bxc3 {[%clk 0:00:54.9]} 8. Bxc3 {[%clk 0:00:52]} 8... c6 {[%clk 0:00:54.6]} 9. Be2 {[%clk 0:00:50.5]} 9... cxd5 {[%clk 0:00:52.9]} 10. exd5 {[%clk 0:00:49.7]} 10... Nexd5 {[%clk 0:00:51.3]} 11. Qb5+ {[%clk 0:00:45]} 11... Bd7 {[%clk 0:00:46.9]} 12. Qxb7 {[%clk 0:00:43.9]} 12... Nxc3 {[%clk 0:00:45]} 13. bxc3 {[%clk 0:00:42.9]} 13... O-O {[%clk 0:00:43.2]} 14. O-O {[%clk 0:00:41.3]} 14... Rb8 {[%clk 0:00:42.4]} 15. Qa6 {[%clk 0:00:38]} 15... e4 {[%clk 0:00:39.9]} 16. Qxd6 {[%clk 0:00:36.8]} 16... exf3 {[%clk 0:00:38.3]} 17. Bxf3 {[%clk 0:00:35.7]} 17... Rb6 {[%clk 0:00:34.3]} 18. Qg3 {[%clk 0:00:34.3]} 18... Bc6 {[%clk 0:00:29.7]} 19. Be2 {[%clk 0:00:27.9]} 19... Qa8 {[%clk 0:00:27.2]} 20. Bd3 {[%clk 0:00:24.5]} 20... Ne4 {[%clk 0:00:26.1]} 21. Bxe4 {[%clk 0:00:23.1]} 21... Bxe4 {[%clk 0:00:25.1]} 22. Rae1 {[%clk 0:00:22.3]} 22... Bxc2 {[%clk 0:00:23.5]} 23. Re3 {[%clk 0:00:19.8]} 23... Rb1 {[%clk 0:00:21.1]} 24. Rxb1 {[%clk 0:00:11.7]} 24... Bxb1 {[%clk 0:00:20.7]} 25. Qg4 {[%clk 0:00:10.8]} 25... Bg6 {[%clk 0:00:19]} 26. h3 {[%clk 0:00:09.1]} 26... Rd8 {[%clk 0:00:17.2]} 27. h4 {[%clk 0:00:06]} 27... Rd1+ {[%clk 0:00:14.3]} 28. Kh2 {[%clk 0:00:05.3]} 28... f5 {[%clk 0:00:12.4]} 29. Qg5 {[%clk 0:00:03.3]} 29... Qd8 {[%clk 0:00:10]} 30. Qxd8+ {[%clk 0:00:01.8]} 30... Rxd8 {[%clk 0:00:07.6]} 31. g3 {[%clk 0:00:00.8]} 31... f4 {[%clk 0:00:07.3]} 0-1

[Event "Live Chess"]
[Site "Chess.com"]
[Date "2010.12.06"]
[Round "-"]
[White "hipposcottimus"]
[Black "Mashdy"]
[Result "1-0"]
[CurrentPosition "1r2r2k/ppb3pp/4N3/3B4/8/1Q6/PP2KPPq/R3R3 b - -"]
[Timezone "UTC"]
[ECO "C00"]
[ECOUrl "https://www.chess.com/openings/French-Defense-Knight-Variation"]
[UTCDate "2010.12.06"]
[UTCTime "00:26:57"]
[WhiteElo "1538"]
[BlackElo "1320"]
[TimeControl "60"]
[Termination "hipposcottimus won on time"]
[StartTime "00:26:57"]
[EndDate "2010.12.06"]
[EndTime "00:28:56"]
[Link "https://www.chess.com/game/live/74439132"]

1. e4 {[%clk 0:01:00]} 1... e6 {[%clk 0:01:00]} 2. Nf3 {[%clk 0:00:59.6]} 2... c6 {[%clk 0:00:59.7]} 3. e5 {[%clk 0:00:59.1]} 3... d5 {[%clk 0:00:59.3]} 4. exd6 {[%clk 0:00:57.7]} 4... Bxd6 {[%clk 0:00:58.1]} 5. d4 {[%clk 0:00:57.4]} 5... Nf6 {[%clk 0:00:57.5]} 6. Bg5 {[%clk 0:00:54.5]} 6... O-O {[%clk 0:00:56.9]} 7. Ne5 {[%clk 0:00:53.6]} 7... Nbd7 {[%clk 0:00:54.4]} 8. Bxf6 {[%clk 0:00:49.4]} 8... Qxf6 {[%clk 0:00:52]} 9. Nf3 {[%clk 0:00:45.2]} 9... Nb6 {[%clk 0:00:49.2]} 10. Bd3 {[%clk 0:00:43.3]} 10... e5 {[%clk 0:00:48.1]} 11. O-O {[%clk 0:00:42]} 11... exd4 {[%clk 0:00:46.4]} 12. c3 {[%clk 0:00:40.6]} 12... c5 {[%clk 0:00:45.4]} 13. cxd4 {[%clk 0:00:39.6]} 13... cxd4 {[%clk 0:00:44.5]} 14. Nbd2 {[%clk 0:00:39.3]} 14... Nd5 {[%clk 0:00:43.2]} 15. Ne4 {[%clk 0:00:38.9]} 15... Qe7 {[%clk 0:00:40.9]} 16. Qb3 {[%clk 0:00:36]} 16... Be6 {[%clk 0:00:38.3]} 17. Nxd4 {[%clk 0:00:33.7]} 17... Rab8 {[%clk 0:00:34.5]} 18. Nxe6 {[%clk 0:00:31.2]} 18... fxe6 {[%clk 0:00:32.8]} 19. Rfe1 {[%clk 0:00:29.9]} 19... Qd7 {[%clk 0:00:28.5]} 20. Bc4 {[%clk 0:00:27.4]} 20... Bc7 {[%clk 0:00:24.7]} 21. Nc5 {[%clk 0:00:25]} 21... Qd6 {[%clk 0:00:22.7]} 22. Nxe6 {[%clk 0:00:22.7]} 22... Qxh2+ {[%clk 0:00:19.2]} 23. Kf1 {[%clk 0:00:20.5]} 23... Rfe8 {[%clk 0:00:16.7]} 24. Bxd5 {[%clk 0:00:16.5]} 24... Kh8 {[%clk 0:00:01.7]} 25. Ke2 {[%clk 0:00:12.3]} 1-0